fUSD/lending_fUSD_20250611
["ID","MTS","AMOUNT","RATE_DAILY","PERIOD"]
[365332926,1749604245395,-490.0,0.00016767,2]
[365332928,1749604245405,-628.05,0.00016767,2]
[365332931,1749604245414,-490.0,0.00016767,2]
[365332933,1749604245423,-184.17182038,0.00016767,2]
[365332935,1749604245432,-490.0,0.00016767,2]
[365332937,1749604245442,-242.86731395,0.00016767,2]
[365332939,1749604245451,-162.1254882,0.00016767,2]
[365332941,1749604245460,-490.0,0.00016767,2]
[365332943,1749604245470,-490.0,0.00016767,2]
[365332945,1749604245479,-490.0,0.00016767,2]
[365332947,1749604245488,-490.0,0.00016767,2]
[365332949,1749604245497,-632.33,0.00016767,2]
[365332951,1749604245506,-490.0,0.00016767,2]
[365332953,1749604245516,-490.0,0.00016767,2]
[365332955,1749604245528,-490.0,0.00016767,2]
[365332957,1749604245537,-506.72285958,0.00016767,2]
[365332959,1749604245547,-490.0,0.00016767,2]
[365332961,1749604245556,-490.0,0.00016767,2]
[365332963,1749604245566,-490.0,0.00016767,2]
[365332965,1749604245576,-490.0,0.00016767,2]
[365332967,1749604245585,-490.0,0.00016767,2]
[365332969,1749604245595,-490.0,0.00016767,2]
[365332971,1749604245605,-490.0,0.00016767,2]
[365332973,1749604245615,-490.0,0.00016767,2]
[365332975,1749604245625,-490.0,0.00016767,2]
[365332977,1749604245634,-257.62,0.00016767,2]
[365332979,1749604245643,-490.0,0.00016767,2]
[365332981,1749604245653,-253.00971529,0.00016767,2]
[365332983,1749604245663,-490.0,0.00016767,2]
[365332985,1749604245672,-179.24,0.00016767,2]
[365332987,1749604245682,-490.0,0.00016767,2]
[365332989,1749604245691,-490.0,0.00016767,2]
[365332991,1749604245701,-490.0,0.00016767,2]
[365332993,1749604245711,-225.33,0.00016767,2]
[365332995,1749604245720,-490.0,0.00016767,2]
[365332997,1749604245729,-326.16488716,0.00016767,2]
[365332999,1749604245738,-490.0,0.00016767,2]
[365333001,1749604245747,-591.71,0.00016767,2]
[365333003,1749604245756,-503.86963524,0.00016767,2]
[365333005,1749604245766,-490.0,0.00016767,2]
[365333007,1749604245775,-490.0,0.00016767,2]
[365333009,1749604245785,-490.0,0.00016767,2]
[365333011,1749604245795,-490.0,0.00016767,2]
[365333013,1749604245804,-490.0,0.00016767,2]
[365333015,1749604245813,-490.0,0.00016767,2]
[365333017,1749604245824,-490.0,0.00016767,2]
[365333019,1749604245833,-416.4,0.00016767,2]
[365333021,1749604245842,-490.0,0.00016767,2]
[365333023,1749604245852,-490.0,0.00016767,2]
[365333025,1749604245861,-490.0,0.00016931,2]
[365333027,1749604245873,-490.0,0.00016931,2]
[365333029,1749604245882,-490.0,0.00016931,2]
[365333031,1749604245891,-490.0,0.00016931,2]
[365333033,1749604245900,-430.0,0.00016931,2]
[365333035,1749604245909,-490.0,0.00016931,2]
[365333037,1749604245919,-430.0,0.00016931,2]
[365333039,1749604245928,-490.0,0.00016931,2]
[365333041,1749604245938,-430.0,0.00016931,2]
[365333043,1749604245948,-430.0,0.00016931,2]
[365333045,1749604245957,-370.0,0.00016931,2]
[365333047,1749604245967,-300.0,0.00016931,2]
[365333049,1749604245976,-215.72531159,0.00016931,2]
[365333051,1749604245985,-490.0,0.00016931,2]
[365333053,1749604245994,-430.0,0.00016931,2]
[365333055,1749604246003,-430.0,0.00016931,2]
[365333057,1749604246012,-430.0,0.00016931,2]
[365333059,1749604246022,-469.52709805,0.00016931,2]
[365333061,1749604246031,-430.0,0.00016931,2]
[365333063,1749604246041,-430.0,0.00016931,2]
[365333065,1749604246050,-430.0,0.00016931,2]
[365333067,1749604246059,-430.0,0.00016931,2]
[365333070,1749604246067,-430.0,0.00016931,2]
[365333072,1749604246077,-430.0,0.00016931,2]
[365333074,1749604246086,-430.0,0.00016931,2]
[365333076,1749604246095,-430.0,0.00016931,2]
[365333078,1749604246104,-430.0,0.00016931,2]
[365333080,1749604246113,-430.0,0.00016931,2]
[365333082,1749604246122,-490.0,0.00016931,2]
[365333084,1749604246131,-249.9270195,0.00016931,2]
[365333086,1749604246140,-490.0,0.00016931,2]
[365333088,1749604246148,-430.0,0.00016931,2]
[365333090,1749604246159,-490.0,0.00016931,2]
[365333092,1749604246168,-490.0,0.00016931,2]
[365333094,1749604246177,-450.0,0.00016931,2]
[365333096,1749604246187,-490.0,0.00016931,2]
[365333098,1749604246196,-549.75,0.00016931,2]
[365333100,1749604246205,-490.0,0.00016931,2]
[365333102,1749604246214,-486.2,0.00016931,2]
[365333104,1749604246224,-450.0,0.00016931,2]
[365333106,1749604246233,-490.0,0.00016931,2]
[365333108,1749604246243,-490.0,0.00016931,2]
[365333110,1749604246253,-481.8,0.00016931,2]
[365333112,1749604246262,-490.0,0.00016931,2]
[365333114,1749604246272,-635.92,0.00016931,2]
[365333116,1749604246281,-490.0,0.00016931,2]
[365333118,1749604246290,-490.0,0.00016931,2]
[365333120,1749604246299,-490.0,0.00016931,2]
[365333122,1749604246309,-426.15,0.00016931,2]
[365333124,1749604246319,-490.0,0.00016931,2]
[365333126,1749604246329,-490.0,0.00016931,2]
[365333128,1749604246338,-440.0,0.00016931,2]
[365333130,1749604246348,-243.32739275,0.00016931,2]
[365333132,1749604246357,-490.0,0.00016931,2]
[365333134,1749604246367,-540.56,0.00016931,2]
[365333136,1749604246376,-490.0,0.00016931,2]
[365333138,1749604246385,-490.0,0.00016931,2]
[365333140,1749604246394,-490.0,0.00016931,2]
[365333142,1749604246404,-490.0,0.00016931,2]
[365333144,1749604246413,-490.0,0.00016931,2]
[365333146,1749604246423,-590.6,0.00016931,2]
[365333148,1749604246433,-490.0,0.00016931,2]
[365333150,1749604246443,-450.0,0.00016931,2]
[365333152,1749604246452,-490.0,0.00016931,2]
[365333154,1749604246462,-490.0,0.00016931,2]
[365333156,1749604246471,-490.0,0.00016931,2]
[365333158,1749604246481,-328.76,0.00016931,2]
[365333160,1749604246490,-219.0,0.00016931,2]
[365333162,1749604246500,-578.6,0.00016931,2]
[365333164,1749604246510,-509.03,0.00016931,2]
[365333165,1749604246521,-490.0,0.00016931,2]
[365333166,1749604246533,-374.46,0.00016931,2]
[365333167,1749604246543,-581.24,0.00016931,2]
[365333168,1749604246552,-490.0,0.00016931,2]
[365333169,1749604246562,-463.4,0.00016931,2]
[365333170,1749604246573,-490.0,0.00016931,2]
[365333171,1749604246582,-490.0,0.00016931,2]
[365333173,1749604246593,-490.0,0.00016931,2]
[365333175,1749604246603,-490.0,0.00016931,2]
[365333177,1749604246613,-490.0,0.00016931,2]
[365333179,1749604246623,-490.0,0.00016931,2]
[365333181,1749604246632,-291.4349851,0.00016931,2]
[365333183,1749604246642,-174.1,0.00016931,2]
[365333185,1749604246651,-490.0,0.00016931,2]
[365333187,1749604246662,-490.0,0.00016931,2]
[365333189,1749604246673,-636.31,0.00016931,2]
[365333191,1749604246683,-490.0,0.00016931,2]
[365333193,1749604246693,-490.0,0.00016931,2]
[365333195,1749604246703,-490.0,0.00016931,2]
[365333197,1749604246713,-490.0,0.00016931,2]
[365333200,1749604246722,-490.0,0.00016931,2]
[365333202,1749604246734,-162.63,0.00016931,2]
[365333204,1749604246744,-490.0,0.00016931,2]
[365333206,1749604246755,-490.0,0.00016931,2]
[365333208,1749604246766,-250.0,0.00016931,2]
[365333210,1749604246778,-490.0,0.00016931,2]
[365333212,1749604246788,-490.0,0.00016931,2]
[365333214,1749604246798,-490.0,0.00016931,2]
[365333216,1749604246808,-490.0,0.00016931,2]
[365333218,1749604246818,-490.0,0.00016931,2]
[365333220,1749604246829,-490.0,0.00016931,2]
[365333222,1749604246839,-490.0,0.00016931,2]
[365333224,1749604246849,-490.0,0.00016931,2]
[365333226,1749604246860,-195.51653398,0.00016931,2]
[365333228,1749604246869,-490.0,0.00016931,2]
[365333230,1749604246879,-490.0,0.00016931,2]
[365333232,1749604246889,-490.0,0.00016931,2]
[365333234,1749604246899,-490.0,0.00016931,2]
[365333236,1749604246910,-490.0,0.00016931,2]
[365333238,1749604246921,-490.0,0.00016931,2]
[365333240,1749604246930,-479.64,0.00016931,2]
[365333243,1749604246941,-250.0,0.00016931,2]
[365333245,1749604246950,-490.0,0.00016931,2]
[365333247,1749604246961,-250.0,0.00016931,2]
[365333249,1749604246971,-490.0,0.00016931,2]
[365333251,1749604246981,-490.0,0.00016931,2]
[365333253,1749604246991,-490.0,0.00016931,2]
[365333255,1749604247001,-490.0,0.00016931,2]
[365333257,1749604247011,-538.66503677,0.00016931,2]
[365333259,1749604247021,-490.0,0.00016931,2]
[365333261,1749604247031,-490.0,0.00016931,2]
[365333263,1749604247041,-490.0,0.00016931,2]
[365333265,1749604247051,-490.0,0.00016931,2]
[365333267,1749604247060,-490.0,0.00016931,2]
[365333269,1749604247070,-202.0,0.00016991,2]
[365333271,1749604247079,-985.7931589,0.00017026,2]
[365333273,1749604247089,-480.0,0.00017095,2]
[365333275,1749604247098,-491.55565959,0.00017095,2]
[365333277,1749604247108,-420.0,0.00017095,2]
[365333279,1749604247117,-220.91075356,0.00017095,2]
[365333281,1749604247127,-360.0,0.00017095,2]
[365333283,1749604247137,-490.0,0.00017095,2]
[365333285,1749604247146,-159.48,0.00017095,2]
[365333287,1749604247156,-420.0,0.00017095,2]
[365333289,1749604247166,-420.0,0.00017095,2]
[365333291,1749604247175,-490.0,0.00017095,2]
[365333293,1749604247185,-490.0,0.00017095,2]
[365333295,1749604247195,-292.28,0.00017095,2]
[365333297,1749604247205,-490.0,0.00017095,2]
[365333299,1749604247214,-490.0,0.00017095,2]
[365333301,1749604247223,-320.0,0.00017095,2]
[365333303,1749604247232,-490.0,0.00017095,2]
[365333305,1749604247242,-490.0,0.00017095,2]
[365333307,1749604247251,-440.0,0.00017095,2]
[365333309,1749604247261,-490.0,0.00017095,2]
[365333311,1749604247270,-490.0,0.00017095,2]
[365333313,1749604247280,-490.0,0.00017095,2]
[365333315,1749604247289,-610.6,0.00017095,2]
[365333317,1749604247299,-440.0,0.00017095,2]
[365333319,1749604247308,-490.0,0.00017095,2]
[365333321,1749604247317,-490.0,0.00017095,2]
[365333323,1749604247326,-343.97,0.00017095,2]
[365333325,1749604247336,-490.0,0.00017095,2]
[365333328,1749604247347,-490.0,0.00017095,2]
[365333330,1749604247357,-440.0,0.00017095,2]
[365333332,1749604247367,-490.0,0.00017095,2]
[365333334,1749604247377,-440.0,0.00017095,2]
[365333336,1749604247388,-163.55,0.00017095,2]
[365333338,1749604247398,-333.14,0.00017095,2]
[365333340,1749604247408,-555.82,0.00017095,2]
[365333342,1749604247418,-178.13929409,0.00017095,2]
[365333344,1749604247427,-490.0,0.00017095,2]
[365333346,1749604247437,-423.84,0.00017095,2]
[365333348,1749604247448,-490.0,0.00017095,2]
[365333350,1749604247458,-490.0,0.00017095,2]
[365333352,1749604247467,-490.0,0.00017095,2]
[365333354,1749604247477,-636.50169057,0.00017095,2]
[365333356,1749604247487,-490.0,0.00017095,2]
[365333358,1749604247496,-490.0,0.00017095,2]
[365333361,1749604247506,-374.29581401,0.00017095,2]
[365333363,1749604247516,-490.0,0.00017095,2]
[365333365,1749604247530,-490.0,0.00017095,2]
[365333367,1749604247540,-420.0,0.00017095,2]
[365333369,1749604247550,-490.0,0.00017095,2]
[365333371,1749604247560,-490.0,0.00017095,2]
[365333373,1749604247571,-490.0,0.00017095,2]
[365333375,1749604247581,-490.0,0.00017095,2]
[365333377,1749604247591,-490.0,0.00017095,2]
[365333379,1749604247602,-490.0,0.00017095,2]
[365333381,1749604247613,-490.0,0.00017095,2]
[365333383,1749604247623,-490.0,0.00017095,2]
[365333385,1749604247634,-490.0,0.00017095,2]
[365333387,1749604247644,-370.43264577,0.00017095,2]
[365333389,1749604247654,-490.0,0.00017095,2]
[365333391,1749604247665,-490.0,0.00017095,2]
[365333394,1749604247675,-490.0,0.00017095,2]
[365333396,1749604247685,-399.73713642,0.00017095,2]
[365333398,1749604247696,-490.0,0.00017095,2]
[365333400,1749604247706,-490.0,0.00017095,2]
[365333402,1749604247716,-490.0,0.00017095,2]
[365333404,1749604247725,-490.0,0.00017095,2]
[365333406,1749604247734,-490.0,0.00017095,2]
[365333408,1749604247744,-490.0,0.00017095,2]
[365333410,1749604247753,-490.0,0.00017095,2]
[365333412,1749604247763,-490.0,0.00017095,2]
[365333414,1749604247774,-490.0,0.00017095,2]
[365333416,1749604247783,-490.0,0.00017095,2]
[365333419,1749604247793,-586.04,0.00017095,2]
[365333421,1749604247804,-12626.30909572,0.0001713,2]
[365333423,1749604247814,-490.0,0.0001726,2]
[365333425,1749604247823,-490.0,0.0001726,2]
[365333427,1749604247832,-490.0,0.0001726,2]
[365333429,1749604247842,-360.32,0.0001726,2]
[365333431,1749604247852,-303.65,0.0001726,2]
[365333433,1749604247861,-579.86,0.0001726,2]
[365333435,1749604247871,-490.0,0.0001726,2]
[365333437,1749604247881,-317.64,0.0001726,2]
[365333439,1749604247890,-490.0,0.0001726,2]
[365333441,1749604247902,-490.0,0.0001726,2]
[365333443,1749604247913,-607.28,0.0001726,2]
[365333445,1749604247922,-548.7818225,0.0001726,2]
[365333447,1749604247931,-237.68,0.0001726,2]
[365333449,1749604247941,-361.52,0.0001726,2]
[365333451,1749604247950,-490.0,0.0001726,2]
[365333453,1749604247960,-160.25,0.0001726,2]
[365333455,1749604247969,-490.0,0.0001726,2]
[365333457,1749604247979,-490.0,0.0001726,2]
[365333459,1749604247988,-518.92,0.0001726,2]
[365333462,1749604247998,-418.8914729,0.0001726,2]
[365333464,1749604248008,-470.0,0.0001726,2]
[365333466,1749604248018,-410.0,0.0001726,2]
[365333467,1749604248028,-490.0,0.0001726,2]
[365333468,1749604248038,-490.0,0.0001726,2]
[365333469,1749604248048,-490.0,0.0001726,2]
[365333470,1749604248058,-296.00656756,0.0001726,2]
[365333471,1749604248068,-490.0,0.0001726,2]
[365333472,1749604248078,-490.0,0.0001726,2]
[365333473,1749604248088,-409.1611398,0.0001726,2]
[365333474,1749604248097,-440.0,0.0001726,2]
[365333476,1749604248107,-490.0,0.0001726,2]
[365333478,1749604248117,-490.0,0.0001726,2]
[365333480,1749604248127,-490.0,0.0001726,2]
[365333482,1749604248137,-490.0,0.0001726,2]
[365333485,1749604248147,-490.0,0.0001726,2]
[365333487,1749604248158,-290.0,0.0001726,2]
[365333489,1749604248168,-490.0,0.0001726,2]
[365333491,1749604248179,-490.0,0.0001726,2]
[365333493,1749604248188,-490.0,0.0001726,2]
[365333495,1749604248198,-490.0,0.0001726,2]
[365333497,1749604248208,-457.80933492,0.0001726,2]
[365333499,1749604248217,-430.0,0.0001726,2]
[365333501,1749604248227,-490.0,0.0001726,2]
[365333503,1749604248238,-490.0,0.0001726,2]
[365333505,1749604248248,-400.0,0.0001726,2]
[365333507,1749604248259,-43038.25201873,0.00017316,2]
[365333562,1749604248794,-490.0,0.00016438,2]
[365333564,1749604248804,-490.0,0.00016438,2]
[365333566,1749604248815,-490.0,0.00016602,2]
[365333568,1749604248824,-490.0,0.00016602,2]
[365333570,1749604248834,-490.0,0.00016767,2]
[365333572,1749604248844,-490.0,0.00016767,2]
[365333574,1749604248853,-490.0,0.00016931,2]
[365333576,1749604248863,-490.0,0.00016931,2]
[365333578,1749604248873,-490.0,0.00017095,2]
[365333580,1749604248884,-490.0,0.00017095,2]
[365333582,1749604248893,-490.0,0.0001726,2]
[365333584,1749604248903,-400.0,0.0001726,2]
[365333586,1749604248916,-15709.71798127,0.00017316,2]
[365333588,1749604248927,-150.0,0.00017383,7]
[365333590,1749604248936,-985.7931589,0.00017385,2]
[365333592,1749604248945,-23305.24,0.00017388,2]
[365333594,1749604248955,-2629.75,0.00017423,2]
[365333596,1749604248965,-490.0,0.00017424,2]
[365333598,1749604248974,-490.0,0.00017424,2]
[365333600,1749604248984,-427.75,0.00017424,2]
[365333602,1749604248993,-490.0,0.00017424,2]
[365333604,1749604249004,-490.0,0.00017424,2]
[365333607,1749604249014,-461.92,0.00017424,2]
[365333608,1749604249024,-490.0,0.00017424,2]
[365333611,1749604249034,-490.0,0.00017424,2]
[365333613,1749604249043,-490.0,0.00017424,2]
[365333615,1749604249052,-490.0,0.00017424,2]
[365333616,1749604249062,-490.0,0.00017424,2]
[365333619,1749604249072,-400.0,0.00017424,2]
[365333621,1749604249081,-490.0,0.00017424,2]
[365333622,1749604249091,-400.0,0.00017424,2]
[365333624,1749604249101,-400.0,0.00017424,2]
[365333627,1749604249112,-490.0,0.00017424,2]
[365333629,1749604249122,-490.0,0.00017424,2]
[365333631,1749604249131,-490.0,0.00017424,2]
[365333633,1749604249141,-400.0,0.00017424,2]
[365333635,1749604249150,-400.0,0.00017424,2]
[365333637,1749604249161,-400.0,0.00017424,2]
[365333639,1749604249171,-400.0,0.00017424,2]
[365333641,1749604249181,-400.0,0.00017424,2]
[365333643,1749604249190,-490.0,0.00017424,2]
[365333645,1749604249200,-490.0,0.00017424,2]
[365333647,1749604249214,-802.33,0.00017451,2]
[365333649,1749604249225,-833.29909032,0.00017499,2]
[365333651,1749604249235,-150.0,0.000175,2]
[365333653,1749604249245,-12626.30909572,0.00017525,2]
[365333655,1749604249255,-186.01,0.00017561,2]
[365333657,1749604249265,-168.67,0.00017586,2]
[365333659,1749604249275,-490.0,0.00017589,2]
[365333661,1749604249284,-490.0,0.00017589,2]
[365333663,1749604249293,-152.12,0.00017589,2]
[365333665,1749604249303,-202.30955045,0.00017589,2]
[365333667,1749604249313,-490.0,0.00017589,2]
[365333669,1749604249322,-490.0,0.00017589,2]
[365333671,1749604249332,-400.0,0.00017589,2]
[365333673,1749604249341,-424.92,0.00017589,2]
[365333675,1749604249351,-400.0,0.00017589,2]
[365333677,1749604249361,-490.0,0.00017589,2]
[365333679,1749604249370,-323.07,0.00017589,2]
[365333681,1749604249380,-330.48,0.00017589,2]
[365333683,1749604249390,-490.0,0.00017589,2]
[365333685,1749604249399,-270.78,0.00017589,2]
[365333687,1749604249409,-555.81,0.00017589,2]
[365333689,1749604249418,-1000.0,0.00017591,2]
[365333691,1749604249427,-985.7931589,0.00017745,2]
[365333693,1749604249437,-490.0,0.00017753,2]
[365333695,1749604249446,-490.0,0.00017753,2]
[365333696,1749604249455,-490.0,0.00017753,2]
[365333697,1749604249465,-490.0,0.00017753,2]
[365333698,1749604249474,-490.0,0.00017753,2]
[365333699,1749604249484,-490.0,0.00017753,2]
[365333700,1749604249493,-300.0,0.0001778,2]
[365333701,1749604249503,-600.0,0.0001778,4]
[365333702,1749604249512,-600.0,0.0001778,4]
[365333704,1749604249524,-202.0,0.00017803,3]
[365333706,1749604249533,-500.0,0.00017808,2]
[365333708,1749604249543,-500.0,0.00017808,2]
[365333710,1749604249552,-283.20089896,0.00017808,2]
[365333712,1749604249562,-251.56265977,0.000179,2]
[365333714,1749604249572,-251.56265964,0.000179,2]
[365333716,1749604249581,-251.56265964,0.000179,2]
[365333718,1749604249592,-251.56265964,0.000179,2]
[365333720,1749604249603,-251.56265964,0.000179,2]
[365333722,1749604249613,-251.56265964,0.000179,2]
[365333724,1749604249622,-251.56265964,0.000179,2]
[365333726,1749604249631,-251.56265964,0.000179,2]
[365333728,1749604249641,-251.56265964,0.000179,2]
[365333730,1749604249650,-1370.45721764,0.000179,2]
[365333732,1749604249660,-490.0,0.00017917,2]
[365333734,1749604249669,-490.0,0.00017917,2]
[365333736,1749604249679,-490.0,0.00017917,2]
[365333738,1749604249688,-490.0,0.00017917,2]
[365333740,1749604249697,-184.24,0.00017917,2]
[365333742,1749604249706,-490.0,0.00017917,2]
[365333744,1749604249716,-12626.30909572,0.00017921,2]
[365333746,1749604249725,-473.0,0.00017945,2]
[365333748,1749604249734,-1370.45721749,0.00017969,2]
[365333750,1749604249743,-251.56265964,0.00018025,2]
[365333752,1749604249752,-1370.45721749,0.00018038,2]
[365333754,1749604249761,-490.0,0.00018082,2]
[365333756,1749604249771,-625.6,0.00018082,2]
[365333758,1749604249780,-490.0,0.00018082,2]
[365333760,1749604249789,-552.07,0.00018082,2]
[365333762,1749604249798,-490.0,0.00018082,2]
[365333764,1749604249807,-166.36,0.00018098,2]
[365333766,1749604249816,-985.7931589,0.00018104,2]
[365333768,1749604249825,-1370.45721749,0.00018107,2]
[365333770,1749604249835,-1370.45721749,0.00018176,2]
[365333772,1749604249843,-150.0,0.0001819,2]
[365333774,1749604249852,-666.0,0.0001819,2]
[365333776,1749604249861,-182.45,0.0001819,2]
[365333778,1749604249870,-251.56265964,0.00018213,2]
[365333780,1749604249880,-151.0,0.00018219,2]
[365333782,1749604249888,-207.4,0.00018219,2]
[365333784,1749604249897,-1370.45721749,0.00018245,2]
[365333786,1749604249906,-490.0,0.00018246,2]
[365333788,1749604249915,-175.9,0.00018246,2]
[365333790,1749604249924,-176.49,0.00018246,2]
[365333792,1749604249934,-1370.45721749,0.00018314,2]
[365333794,1749604249943,-12626.30909572,0.00018317,2]
[365333796,1749604249952,-521.0,0.00018329,2]
[365333798,1749604249961,-163.33,0.00018356,2]
[365333800,1749604249970,-163.33,0.00018356,2]
[365333802,1749604249981,-163.33,0.00018356,2]
[365333804,1749604249989,-163.22,0.00018356,2]
[365333806,1749604249998,-1370.45721749,0.00018383,2]
[365333808,1749604250007,-251.56265964,0.000184,2]
[365333810,1749604250015,-490.0,0.0001841,2]
[365333812,1749604250024,-1370.45721749,0.00018452,2]
[365333814,1749604250036,-985.7931589,0.00018463,2]
[365333817,1749604250048,-1602.43,0.00018464,2]
[365333819,1749604250062,-150.0,0.000185,2]
[365333821,1749604250074,-1370.45721749,0.00018521,2]
[365333822,1749604250085,-15705.37,0.00018533,2]
[365333823,1749604250095,-490.0,0.00018575,2]
[365333824,1749604250108,-251.56265964,0.00018588,2]
[365333826,1749604250121,-1370.45721749,0.0001859,2]
[365333828,1749604250133,-202.0,0.00018614,4]
[365333831,1749604250145,-1370.45721749,0.00018659,2]
[365333833,1749604250158,-12626.30909572,0.00018713,2]
[365333834,1749604250170,-1370.45721749,0.00018728,2]
[365333835,1749604250181,-490.0,0.00018739,2]
[365333836,1749604250192,-225.0,0.00018753,2]
[365333837,1749604250203,-251.56265964,0.00018775,2]
[365333838,1749604250213,-1370.45721749,0.00018797,2]
[365333839,1749604250226,-985.7931589,0.00018822,2]
[365333840,1749604250237,-1370.45721749,0.00018866,2]
[365333841,1749604250249,-490.0,0.00018904,2]
[365333842,1749604250262,-1370.45721749,0.00018934,2]
[365333843,1749604250274,-168.67,0.00018939,2]
[365333844,1749604250286,-251.56265964,0.00018963,2]
[365333845,1749604250299,-1370.45721749,0.00019003,2]
[365333846,1749604250310,-467.88,0.00019068,2]
[365333847,1749604250324,-1370.45721749,0.00019072,2]
[365333848,1749604250336,-12626.30909572,0.00019108,2]
[365333849,1749604250349,-1370.45721749,0.00019141,2]
[365333850,1749604250360,-251.56265964,0.0001915,2]
[365333851,1749604250372,-500.0,0.00019178,2]
[365333852,1749604250383,-582.69319305,0.00019178,2]
[365333853,1749604250395,-500.0,0.00019178,2]
[365333854,1749604250409,-500.0,0.00019178,2]
[365333855,1749604250423,-500.0,0.00019178,2]
[365333856,1749604250435,-500.0,0.00019178,2]
[365333857,1749604250446,-500.0,0.00019178,2]
[365333858,1749604250458,-500.0,0.00019178,2]
[365333859,1749604250468,-151.0,0.00019178,2]
[365333860,1749604250479,-163.33,0.00019178,2]
[365333861,1749604250490,-985.7931589,0.00019182,2]
[365333862,1749604250503,-195.14800746,0.00019205,2]
[365333863,1749604250517,-541.35284072,0.0001921,2]
[365333864,1749604250530,-1370.45721749,0.0001921,2]
[365333865,1749604250541,-1370.45721749,0.00019279,2]
[365333866,1749604250551,-454.85,0.00019283,2]
[365333867,1749604250561,-454.85,0.00019283,2]
[365333868,1749604250575,-907.28,0.00019283,2]
[365333869,1749604250588,-454.85,0.00019283,2]
[365333870,1749604250601,-25449.6223,0.00019297,2]
[365333871,1749604250612,-1000.0,0.00019297,2]
[365333872,1749604250623,-475.9398,0.00019297,2]
[365333873,1749604250635,-929.5649,0.00019297,2]
[365333874,1749604250646,-251.56265964,0.00019338,2]
[365333875,1749604250658,-150.99,0.00019339,2]
[365333876,1749604250674,-299.99,0.00019339,7]
[365333877,1749604250685,-499.99,0.00019339,2]
[365333878,1749604250696,-9999.99,0.00019339,2]
[365333879,1749604250707,-1480.56,0.00019339,2]
[365333880,1749604250721,-150.99,0.00019339,2]
[365333881,1749604250733,-999.99,0.00019339,2]
[365333882,1749604250744,-1806.97,0.00019339,2]
[365333883,1749604250756,-1155.1,0.00019339,2]
[365333884,1749604250768,-4460.29,0.00019339,5]
[365333885,1749604250779,-805.49,0.00019339,2]
[365333886,1749604250790,-10411.17,0.00019339,2]
[365333887,1749604250814,-11802.26,0.00019339,2]
[365333888,1749604250828,-9999.99,0.00019339,2]
[365333889,1749604250842,-2472.31,0.00019339,2]
[365333890,1749604250855,-9999.99,0.00019339,2]
[365333891,1749604250868,-489.67,0.00019339,2]
[365333892,1749604250882,-68078.76,0.00019339,2]
[365333893,1749604250894,-1370.45721749,0.00019348,2]
[365333894,1749604250906,-152.0,0.00019393,3]
[365333895,1749604250919,-151.0,0.00019397,2]
[365333896,1749604250932,-168820.8912935,0.00019397,2]
[365333897,1749604250945,-243.7984,0.00019397,2]
[365333898,1749604250957,-247.478521,0.00019397,2]
[365333900,1749604250969,-247.478521,0.00019397,2]